Cogmind - Beta 13 @@@ ROGUE MODE // 2024.04.23 @ 13:57:13 Player: CONM Result: Destroyed by Y-45 Defender with Beam Rifle Performance ------------- Evolutions (1) 500 Regions Visited (2) 400 Robots Destroyed (19) 95 Value Destroyed (356) 356 Prototype IDs (0) 0 Alien Tech Used (0) 0 Bonus (0) 0 TOTAL SCORE: 1351 Bonus ------- None Cogmind --------- Core Integrity 0/400 Matter 15/300 Energy 100/100 System Corruption 0% Temperature Cool (9) Movement Rolling (95) Ox1 Location -9/Materials Parts ------- > --- POWER (1) -------- (None) > --- PROPULSION (3) --- Wheel > --- UTILITY (3) ------ Medium Storage Unit > --- WEAPON (2) ------- Hammer > --- INVENTORY (10) --- High-capacity Storage Unit High-capacity Matter Pod (0) EM Pulse Gun Rocket Launcher Peak State ------------ > --- POWER ------------ Ion Engine > --- PROPULSION ------- Light Treads Light Treads > --- UTILITY ---------- Small Storage Unit Tractor Beam > --- WEAPON ----------- Rocket Launcher Rocket Launcher > --- INVENTORY -------- Light Treads Light Treads Aluminum Leg Aluminum Leg Heat Sink Assault Rifle Rocket Launcher Rocket Launcher [Rating: 10] Favorites ----------- Power Ion Engine Engine Ion Engine Propulsion Light Treads Treads Light Treads Leg Aluminum Leg Wheel Wheel Utility Tractor Beam Device Tractor Beam Storage Small Storage Unit Weapon Rocket Launcher Energy Gun EM Pulse Gun Ballistic Gun Assault Rifle Launcher Rocket Launcher Impact Weapon Hammer Build | -11 -10 -9 ------- Run | Yrd Mat Mat Slots Evolved 2 | . . 2 Power . | . . . Propulsion 1 | . . 1 Utility 1 | . . 1 Weapon . | . . . Parts Attached 23 | 5 9 9 Power 3 | . 2 1 Engine 3 | . 2 1 Core . | . . . Reactor . | . . . Propulsion 8 | 2 2 4 Treads 5 | 2 2 1 Leg 2 | . . 2 Wheel 1 | . . 1 Hover . | . . . Flight . | . . . Utility 5 | 1 2 2 Device 3 | . 1 2 Storage 2 | 1 1 . Processor . | . . . Hackware . | . . . Protection . | . . . Artifact . | . . . Weapon 7 | 2 3 2 Energy Gun 2 | 2 . . Energy Cannon . | . . . Ballistic Gun 1 | . . 1 Ballistic Cannon . | . . . Launcher 3 | . 3 . Special Weapon . | . . . Impact Weapon 1 | . . 1 Slashing Weapon . | . . . Piercing Weapon . | . . . Special Melee Weapon . | . . . Unidentified Prototypes . | . . . Parts Lost 14 | . 7 7 Power 3 | . 1 2 Propulsion 5 | . 2 3 Utility 2 | . 1 1 Weapon 4 | . 3 1 Highest Loss Streak 4 | . 2 4 To Critical Strikes 1 | . 1 . Average Slot Usage (%) 87 | . 95 52 Engine 12 | . 13 8 Treads 22 | . 27 1 Leg 2 | . . 14 Device 11 | . 13 4 Storage 13 | . 14 11 Launcher 20 | . 25 . Impact Weapon 1 | . . 10 Naked Turns . | . . . Heaviest Build 24 | 9 24 19 Greatest Support 40 | 40 40 26 Greatest Overweight (x) 4 | . . 4 Average Overweight (x) . | . . . Largest Inventory Capacity 10 | 8 10 10 Average Capacity 8 | 6 8 10 Most Carried 9 | 6 9 8 Average Carried 7 | 3 7 6 Final Capacity 10 | 8 10 10 Final Carried 8 | 4 8 4 Class Distribution -------------------- 100% | Mutant Dominant Class ---------------- Mutant | -10/Materials Mutant | -9/Materials Resources | -11 -10 -9 ----------- Run | Yrd Mat Mat Matter Collected 407 | 186 182 39 Remotely 182 | . 182 . Salvage Created 149 | . 127 22 Parts 27 | . 27 . Haulers Intercepted . | . . . Recyclers Shooed . | . . . Parts Field Recycled . | . . . Retrieved Matter . | . . . Parts Self-Destructed . | . . . Prevented . | . . . Kills | -11 -10 -9 ------- Run | Yrd Mat Mat Combat Hostiles Destroyed 12 | . 12 . AOE 12 | . 12 . Classes Destroyed 5 | . 5 . Worker 2 | . 1 1 Builder 3 | . 3 . Watcher 2 | . 2 . Swarmer 6 | . 6 . Grunt 6 | . 6 . Best Kill Streak 5 | . 5 1 Combat Bots Only 3 | . 3 . Max Kills in Single Turn 2 | . 2 1 Gunslinging . | . . . Exploded 2 | . 2 . Melee . | . . . Uniques/NPCs Destroyed . | . . . Combat | -11 -10 -9 -------- Run | Yrd Mat Mat Hostile Shots Fired 225 | . 99 126 Missed 70 | . 24 46 Damage Taken 2006 | . 913 1093 Core 534 | . 132 402 Absorbed by Shields . | . . . Core Remaining (%) 73 | 100 47 . Volleys Fired 19 | . 18 1 Largest 2 | . 2 1 Hottest 66 | . 66 20 Shots Fired 33 | . 32 1 Gun 1 | . . 1 Cannon . | . . . Launcher 32 | . 32 . Special . | . . . Kinetic 1 | . . 1 Thermal . | . . . Explosive 32 | . 32 . Electromagnetic . | . . . Robot Hit Streak 4 | . 4 3 Robot Miss Streak 3 | . 3 . Penetration Max . | . . . Secondary Targets . | . . . Shots Hit Robots 19 | . 15 4 Core Hits 25 | . 25 . Critical Kills . | . . . Critical Parts Destroyed 1 | . . 1 Critical Strikes 1 | . . 1 Smash 1 | . . 1 Melee Attacks 4 | . . 4 Impact 4 | . . 4 Slashing . | . . . Piercing . | . . . Sneak Attacks 2 | . . 2 Combat Hostiles . | . . . Follow-up Attacks . | . . . Damage Inflicted 1664 | . 1478 186 Guns 11 | . . 11 Cannons . | . . . Explosions 1464 | . 1464 . Melee 175 | . . 175 Ramming 14 | . 14 . Kinetic 11 | . . 11 Thermal 110 | . 110 . Explosive 1354 | . 1354 . Electromagnetic . | . . . Impact 175 | . . 175 Slashing . | . . . Piercing . | . . . Highest Corruption . | . . . Average Corruption . | . . . Corruption Purged . | . . . Corruption Blocked . | . . . Overload Shots . | . . . Overflow Damage 287 | . 186 101 Projectiles . | . . . Explosions 186 | . 186 . Melee 101 | . . 101 Knockbacks 1 | . . 1 Impact 1 | . . 1 Kinetic . | . . . Secondary . | . . . Self-Inflicted Damage 78 | . 78 . Shots 2 | . 2 . Rammed 6 | . 6 . Targets Rammed 6 | . 6 . Kicked . | . . . Crushed . | . . . Highest Temperature 60 | . 60 2 Average Temperature 17 | . 17 1 Received Heat Transfer 963 | . 414 549 Siege Activations . | . . . Robots Corrupted . | . . . Combat Hostiles . | . . . Parts Fried 1 | . . 1 Impact Corruptions 3 | . . 3 Robots Melted . | . . . Combat Hostiles . | . . . Parts Melted . | . . . Heat Transferred 50 | . 50 . Parts Sabotaged . | . . . Parts Stolen . | . . . Parts Stripped . | . . . Power Chain Reactions . | . . . Alert | -11 -10 -9 ------- Run | Yrd Mat Mat Peak Influence 378 | . 378 54 Initial 29 | . . 29 Average 174 | . 216 38 Maximum Alert Level 1 | . 1 . Low Security (%) 47 | 100 32 100 Level 1 52 | . 67 . Level 2 . | . . . Level 3 . | . . . Level 4 . | . . . Level 5 . | . . . High Security . | . . . Max Security . | . . . Squads Dispatched 6 | . 4 2 Investigation 4 | . 3 1 Extermination . | . . . Reinforcement 2 | . 1 1 Assault . | . . . Garrison . | . . . Intercept . | . . . Searches Triggered . | . . . Construction Impeded . | . . . Haulers Reinforced . | . . . Active Scanning Responses . | . . . Cargo Convoy Interrupts . | . . . Stealth | -11 -10 -9 --------- Run | Yrd Mat Mat Distress Signals . | . . . Communications Jammed . | . . . Distress Signals . | . . . Times Spotted 30 | . 20 10 Peak Tracking Total 6 | . 3 6 Tactical Retreats 2 | . . 2 Traps | -11 -10 -9 ------- Run | Yrd Mat Mat Traps Triggered 3 | . 3 . Indirectly . | . . . Trap Hack Attempts . | . . . Triggered . | . . . Disarmed . | . . . Reprogrammed . | . . . Reused . | . . . Traps Extracted . | . . . Installed . | . . . Triggered . | . . . Machines | -11 -10 -9 ---------- Run | Yrd Mat Mat Machines Disabled 4 | . 4 . Max in Single Turn 1 | . 1 . Machines Repaired . | . . . Machines Dismantled . | . . . Machines Sabotaged . | . . . Overloaded Fab Kills . | . . . Hacking | -11 -10 -9 --------- Run | Yrd Mat Mat Machines Accessed 3 | . 3 . Terminals 3 | . 3 . Fabricators . | . . . Repair Stations . | . . . Recycling Units . | . . . Scanalyzers . | . . . Garrison Access . | . . . Total Hacks 4 | . 4 . Successful 2 | . 2 . Failed 2 | . 2 . Catastrophic . | . . . Database Lockouts . | . . . Manual . | . . . Terminals 4 | . 4 . Fabricators . | . . . Repair Stations . | . . . Recycling Units . | . . . Scanalyzers . | . . . Garrison Access . | . . . Terminal Hacks 2 | . 2 . Record 1 | . 1 . Emergency Access Points 1 | . 1 . Fabricator Hacks . | . . . Repair Station Hacks . | . . . Recycling Unit Hacks . | . . . Scanalyzer . | . . . Garrison Access Hacks . | . . . Unauthorized Hacks . | . . . Terminals . | . . . Fabricators . | . . . Repair Stations . | . . . Recycling Units . | . . . Scanalyzers . | . . . Garrison Access . | . . . Data Cores Recovered . | . . . Used . | . . . Hacking Detections 1 | . 1 . Full Trace Events . | . . . Feedback Events . | . . . Feedback Blocked . | . . . Robot Schematics Acquired . | . . . Robots Built . | . . . Authchips . | . . . Time . | . . . Total Robot Build Rating . | . . . Part Schematics Acquired . | . . . Parts Built . | . . . Authchips . | . . . Time . | . . . Total Part Build Rating . | . . . Parts Repaired . | . . . Time . | . . . Parts Recycled . | . . . Recycled Matter . | . . . Retrieved Matter . | . . . Retrieved Components . | . . . Parts Scanalyzed . | . . . Part Schematics Acquired . | . . . Parts Damaged . | . . . Bothacking | -11 -10 -9 ------------ Run | Yrd Mat Mat Used RIF Installer . | . . . Robots Hacked . | . . . Non-combat . | . . . Combat . | . . . Robot Hacks Applied . | . . . Relay Couplers Released . | . . . Fabnet Peak Effective % . | . . . Robots Rewired . | . . . Allies Hacked . | . . . Hacks Repelled . | . . . Allies | -11 -10 -9 -------- Run | Yrd Mat Mat Total Allies . | . . . Largest Group . | . . . Highest-Rated Group . | . . . Highest-Rated Ally . | . . . Total Orders . | . . . Ally Attacks . | . . . Total Damage . | . . . Kills . | . . . Allies Corrupted . | . . . Allies Melted . | . . . Intel | -11 -10 -9 ------- Run | Yrd Mat Mat Robot Analysis Total . | . . . Derelict Logs Recovered . | . . . Drone Launches . | . . . Drone Recoveries . | . . . Exploration | -11 -10 -9 ------------- Run | Yrd Mat Mat Turns Passed 1650 | 82 1284 284 Spaces Moved 1006 | 55 746 205 Core 22 | 17 . 5 Treads 813 | 38 746 29 Legs 147 | . . 147 Wheels 24 | . . 24 Hover . | . . . Flight . | . . . Fastest Speed 50 | 50 160 95 Average Speed 151 | 126 160 126 Slowest Speed 250 | 160 160 250 Overloaded Moves . | . . . Propulsion Burnouts . | . . . Robots Hopped . | . . . Cave-ins Triggered . | . . . Exploration Rate (%) 38 | 5 90 19 Regions Visited 2 Branch Regions . Pre-discovered Areas . | . . . Known Exits Taken . | . . . Unknown Exits Taken 2 | 1 1 . Scrap Searched . | . . . Spaces Dug . | . . . Terrain Destroyed 174 | . 174 . Melee . | . . . Projectile . | . . . AOE 174 | . 174 . Terrain Rammed . | . . . Walls Destroyed . | . . . Machines Disabled . | . . . Actions | -11 -10 -9 --------- Run | Yrd Mat Mat Total 1096 | 68 803 225 Wait 6 | . 6 . Move 1004 | 54 745 205 Hop . | . . . Pick Up 27 | 9 14 4 Fast Attach . | . . . Attach 22 | 5 8 9 Detach 1 | . . 1 Swap 1 | . 1 . Drop 6 | . 5 1 Fire 19 | . 18 1 Melee 4 | . . 4 Ram . | . . . Kick . | . . . Crush 6 | . 6 . Escape Stasis . | . . . Rewire . | . . . Trap . | . . . Miscellaneous . | . . . Route ------- -11/Scrapyard -10/Materials (discovered 5 exits: *Mat x3 / [*Min x2]) -9/Materials History --------- Turn | Location | Event 6 | -11/Scrapyard | Discovered new exit (range 16) 83 | -11/Scrapyard | Entered Materials 199 | -10/Materials | Discovered new exit (range 8) 303 | -10/Materials | Build established: Mutant 392 | -10/Materials | Discovered new exit (range 15) 593 | -10/Materials | Discovered new exit (range 9) 1065 | -10/Materials | Discovered new exit (range 13) 1073 | -10/Materials | Discovered new exit (range 14) 1367 | -10/Materials | Entered another Materials area 1367 | -9/Materials | Evolved 2 slots: Propulsion x1, Utility x1 1569 | -9/Materials | Core integrity fell below 50% 1599 | -9/Materials | Lost 4 parts (1p2n1u) 1608 | -9/Materials | Core integrity fell below 20% 1651 | -9/Materials | Destroyed by Y-45 Defender with Beam Rifle Last Messages --------------- Current location identified: Materials U-05 Engineer destroyed. Atomic Centrifuge disabled. Ion Engine destroyed. Critical hit (Burn: +37). K-01 Serf collects debris. K-01 Serf destroyed. Acquired 17 matter. Aluminum Leg destroyed. Critical hit (Burn: +37). Seismic Detector destroyed. Critical hit (Burn: +37). O-16 Technician: "IFF HANDSHAKE FAILED. SECURING TERMINAL." Assault Rifle destroyed. ALERT: Hostiles spotted, dispatching reinforcements to Terminal M012. Ion Engine destroyed. Acquired Wheel. Lgt. Treads destroyed. Map ----- +----------------------------------------------------+ | | | | | | | | | | | | | | | | | | | ?????????????????????????????????????????????????? | | ???????????????????????????????????????########??? | | ???????????????????????????????????????# #??? | | ???????????????????????????????????????# #??? | | ???????????????????????????????????????# #??? | | ???????????????????????????????????????# #??? | | ???????????????????????????????????????# #??? | | ???????????????????????????????????????# #??? | | ?????????????###?????????##################+###### | | ???????????###T########### | | ???????????# | | ???????????# T | | ???????????# #################+# | | ???????????#### ########## #?????????????? # | | ????????????# #?######## ##????????????[ # | | ????????????# ###?# g # #??????????? # | | ????????????###????# """ @# #?????????# # | | ???????????????????# """ gg ########??# """ # | | ???????????????????# """Y # #??# """"" !# | | ???????????????????# Y # #??# """"" # | | ???????????????????# """ # #??????""" # | | ???????????????????# """ ######## #???????" # | | ???????????????????# """ !#??????# #????????#### | | ???????????????????# g #??????# #???????????# | | ???????????????????# """ #??????# #???????????# | | ???????????????????# """ #??????# #???????????? | | ???????????????????# """ #??????# #???????????? | | ???????????????????# #?????## ##??????????? | | ???????????????????########?????# ############ | | ????????????????????????????????# | | ????????????????????????????????# = | | ????????????????????????????????# = | | ????????????????????????????????# ############ | | ????????????????????????????????#######??????????# | | ?????????????????????????????????????????????????# | | ?????????????????????????????????????????????????? | | ?????????????????????????????????????????????????? | | ?????????????????????????????????????????????????? | | ?????????????????????????????????????????????????? | | ?????????????????????????????????????????????????? | | ?????????????????????????????????????????????????? | +----------------------------------------------------+ Best States ------------- Heat Dissipation 28 Energy Generation 10 Energy Capacity 250 Matter Stores 236 Matter Capacity 300 Sight Range 16 Terrain Scan Density 10 Additional Mass Support 6 Evasion (%) 55 Recoil Reduction 2 Item Schematics ----------------- None Robot Schematics ------------------ None Fabricated ------------ Nothing Alien Tech Used ----------------- None Achievements -------------- Use The Force Challenges ------------ None Game ------ Seed AssembledWeaponsImmobilizer Manual? 0 Play Time 00:18:04 Cumulative 6.3 hours Start 2024.04.23 @ 13:38:56 End 2024.04.23 @ 13:57:13 Sessions 1 Manual Loads 0 Difficulty Rogue Special Mode None Game No. 16 Rogue 16 Adventurer 0 Explorer 0 Win Type - Total 0 Types 0/0/0/0/0/0/0/0/0 Lore% 4 Gallery% 8 Achievement% 8 Wizard Run 0 Options --------- Layout 1 ASCII 0 Keyboard 0 Movement Arrows Keybinds 0 Fullscreen 1 Font 24/Smallcaps Map View 50x40 Zoom Use 0% Tactical HUD 0 Map Filters NONE Filters NONE Steam 1 RUN: a3f0572a-8e8b-4c2e-9f6c-18efae6c1f69